Cogmind - Beta 15 @@@ ROGUE MODE // 2025.08.22 @ 02:08:43 Player: shapeshifter Result: Destroyed by X-72 Disruptor with Arc Projector Performance ------------- Evolutions (4) 2000 Regions Visited (8) 1600 Robots Destroyed (59) 295 Value Destroyed (2573) 2573 Prototype IDs (2) 40 Alien Tech Used (0) 0 Bonus (850) 850 TOTAL SCORE: 7358 Bonus ------- High Alert Combat Kills 13 Follower Combat Kills 37 Entered DSFs 500 Acquired ECA 300 Cogmind --------- Core Integrity 0/850 Matter 237/300 Energy 55/100 System Corruption 18% Temperature Cool (0) Movement Core (1350) Ox26 Location -6/Lower Caves Parts ------- > --- POWER (1) -------- (None) > --- PROPULSION (6) --- (None) > --- UTILITY (6) ------ Huge Storage Unit Advanced Visual Processing Unit Improved Signal Interpreter > --- WEAPON (2) ------- (None) > --- INVENTORY (25) --- Power Amplifier Advanced Visual Processing Unit Improved Signal Interpreter Encrypted Comm Array Melee Analysis Suite Makeshift ECM Suite Makeshift Cloaking Device Shield Generator Gatling Laser Proton Cannon Proton Cannon Heavy Ion Cannon Plasma Cutter Plasma Cutter Molecular Deconstructor Ripper Ripper Great Axe Spear Peak State ------------ > --- POWER ------------ Improved Deuterium Engine > --- PROPULSION ------- Armored Treads Armored Treads Armored Treads Armored Treads Armored Treads Medium Treads > --- UTILITY ---------- Huge Storage Unit Advanced Visual Processing Unit Improved Sensor Array Improved Signal Interpreter Improved Medium Armor Plating System Shield > --- WEAPON ----------- Proton Cannon Coil Gun > --- INVENTORY -------- Armored Treads Armored Treads Armored Treads Heat Sink Advanced Visual Processing Unit Improved Signal Interpreter Improved Terrain Scanner Improved Medium Armor Plating Improved Medium Armor Plating Improved Medium Armor Plating Improved Medium Armor Plating Shield Generator Plasma Rifle Proton Cannon Proton Cannon Proton Cannon Heavy Ion Cannon Minigun Enhanced Autogun Plasma Cutter Plasma Cutter Great Axe Spear [Rating: 58] Favorites ----------- Power Improved Deuterium Engine Engine Improved Deuterium Engine Power Core Light Nuclear Core Reactor Light Antimatter Reactor Propulsion Armored Treads Treads Armored Treads Leg Carbon-fiber Leg Wheel Compact Wheel Utility Huge Storage Unit Device Improved Sensor Array Storage Huge Storage Unit Processor Improved Signal Interpreter Hackware System Shield Protection Improved Medium Armor Plating Weapon Proton Cannon Energy Gun Medium Laser Energy Cannon Proton Cannon Ballistic Gun Coil Gun Ballistic Cannon Slug Cannon Special Weapon Molecular Deconstructor Slashing Weapon Ripper Build | -11 -10 -10 -8 -7 -7 -6 -6 -6 ------- Run | Yrd Mat Sub Mat Fac DSF Fac Low Low Slots Evolved 8 | . . . 4 2 . 2 . . Power . | . . . . . . . . . Propulsion 4 | . . . 2 . . 2 . . Utility 4 | . . . 2 2 . . . . Weapon . | . . . . . . . . . Parts Attached 74 | 7 3 1 16 3 8 12 11 13 Power 6 | 1 . . 2 . . 1 2 . Engine 4 | 1 . . 2 . . 1 . . Core 1 | . . . . . . . 1 . Reactor 1 | . . . . . . . 1 . Propulsion 25 | 2 2 . 7 . 2 4 3 5 Treads 18 | 2 . . 6 . 2 4 3 1 Leg 5 | . . . 1 . . . . 4 Wheel 2 | . 2 . . . . . . . Hover . | . . . . . . . . . Flight . | . . . . . . . . . Utility 22 | 2 1 1 2 3 3 3 4 3 Device 8 | 1 . . 1 1 1 . 2 2 Storage 2 | 1 1 . . . . . . . Processor 3 | . . . . 2 . . . 1 Hackware 1 | . . . . . . 1 . . Protection 8 | . . 1 1 . 2 2 2 . Artifact . | . . . . . . . . . Weapon 21 | 2 . . 5 . 3 4 2 5 Energy Gun 5 | 1 . . . . 2 . 1 1 Energy Cannon 6 | . . . 1 . 1 3 . 1 Ballistic Gun 6 | 1 . . 4 . . 1 . . Ballistic Cannon 1 | . . . . . . . 1 . Launcher . | . . . . . . . . . Special Weapon 1 | . . . . . . . . 1 Impact Weapon . | . . . . . . . . . Slashing Weapon 2 | . . . . . . . . 2 Piercing Weapon . | . . . . . . . . . Special Melee Weapon . | . . . . . . . . . Unidentified Prototypes 2 | . . . 1 . . . . 1 Corrupted Parts 4 | . . . . . . . 3 1 System Corruption 15 | . . . . . . . 14 1 Parts Lost 42 | . . . 6 . 3 1 15 17 Power 4 | . . . 1 . . . 2 1 Propulsion 19 | . . . 2 . 2 . 7 8 Utility 9 | . . . . . . . 5 4 Weapon 10 | . . . 3 . 1 1 1 4 Highest Loss Streak 11 | . . . 4 . 3 1 6 11 To Critical Strikes 2 | . . . . . . . . 2 Average Backups 19 | 3 8 13 19 22 23 22 21 17 Power . | . 1 1 1 1 1 . . . Propulsion 2 | 1 1 1 3 5 5 3 2 . Utility 7 | . 4 6 9 8 7 8 8 6 Weapon 5 | . . 2 3 6 8 7 7 7 Tool/Special . | . . . . . . . . . Unused Backups 21 | 1 . . 3 1 4 1 . 11 Power 2 | . . . 1 . . 1 . . Propulsion . | . . . . . . . . . Utility 9 | . . . . 1 2 . . 6 Weapon 8 | 1 . . 2 . 2 . . 3 Tool/Special 2 | . . . . . . . . 2 Average Slot Usage (%) 92 | . 100 100 95 99 99 99 91 65 Engine 6 | . 14 14 8 7 7 6 3 . Treads 26 | . 7 . 28 30 29 39 34 6 Leg 1 | . . . 1 . . . . 16 Wheel 4 | . 20 28 4 . . . . . Device 8 | . 14 . 8 7 9 12 9 8 Storage 7 | . 14 14 9 7 7 6 6 6 Processor 8 | . . . . 13 15 13 13 13 Protection 9 | . . 14 17 15 12 6 6 . Energy Gun 3 | . 14 14 2 . 6 . 1 1 Energy Cannon 3 | . . . 4 7 . 6 3 1 Ballistic Gun 7 | . 14 14 9 7 6 4 4 4 Peak Build Rating 58 | 7 8 9 39 48 52 58 58 55 Average Rating 38 | 5 7 8 29 46 48 55 51 36 On Entrance 28 | . 7 8 9 39 48 48 55 40 Naked Turns . | . . . . . . . . . Heaviest Build 115 | 14 89 89 100 101 107 115 115 106 Greatest Support 128 | 40 40 32 112 112 112 128 128 60 Greatest Overweight (x) 27 | . 2 2 5 . 1 . 2 27 Average Overweight (x) . | . 1 2 . . . . . 1 Largest Inventory Capacity 25 | 8 25 25 25 25 25 25 25 25 Average Capacity 24 | 7 20 25 25 25 25 25 25 25 Most Carried 25 | 6 11 15 25 25 25 25 25 23 Average Carried 19 | 3 8 13 19 22 23 22 21 17 Final Capacity 25 | 8 25 25 25 25 25 25 25 25 Final Carried 25 | 4 11 15 25 25 25 23 16 20 Class Distribution -------------------- 44% | Skirmisher 38% | Mutant 16% | Scavenger-Mutant Dominant Class ---------------- Mutant | -10/Materials Mutant | -10/Subcaves Mutant | -8/Materials Skirmisher | -7/Factory Skirmisher | -7/DSF Skirmisher | -6/Factory Skirmisher | -6/Lower Caves Scavenger-Mutant | -6/Lower Caves Resources | -11 -10 -10 -8 -7 -7 -6 -6 -6 ----------- Run | Yrd Mat Sub Mat Fac DSF Fac Low Low Matter Collected 1883 | 273 4 46 247 . 167 475 441 230 Remotely . | . . . . . . . . . Salvage Created 2788 | 30 44 37 617 . 527 816 491 226 Parts 128 | 4 5 2 33 . 29 27 16 12 Haulers Intercepted 1 | . . . 1 . . . . . Recyclers Shooed 1 | 1 . . . . . . . . Parts Field Recycled . | . . . . . . . . . Retrieved Matter . | . . . . . . . . . Parts Self-Destructed 23 | . . 4 . . . . 9 10 Prevented 7 | . . . . . . . 7 . Kills | -11 -10 -10 -8 -7 -7 -6 -6 -6 ------- Run | Yrd Mat Sub Mat Fac DSF Fac Low Low Combat Hostiles Destroyed 52 | . 3 1 11 . 8 14 10 5 Guns 27 | . 3 1 9 . 5 4 3 2 Cannons 16 | . . . 1 . . 7 6 2 AOE 4 | . . . 1 . 2 1 . . Classes Destroyed 15 | 1 1 1 7 . 2 2 . 1 Builder 1 | . . . . . . 1 . . Tunneler 1 | 1 . . . . . . . . Hauler 1 | . . . 1 . . . . . Recycler 1 | . . . 1 . . . . . Operator 1 | . . . 1 . . . . . Watcher 2 | . . . 1 . . 1 . . Swarmer 10 | . 3 . 3 . . 3 1 . Grunt 19 | . . . 4 . 2 6 7 . Brawler 1 | . . . . . . 1 . . Sentry 7 | . . . 1 . 1 2 2 1 Specialist 3 | . . . . . 3 . . . Hunter 7 | . . . 3 . 1 2 . 1 Heavy 1 | . . . . . 1 . . . Subdweller 1 | . . 1 . . . . . . Butcher 3 | . . . . . . . . 3 Best Kill Streak 5 | 1 3 1 5 . 5 4 4 2 Combat Bots Only 5 | . 3 1 5 . 5 4 4 2 Max Kills in Single Turn 2 | 1 2 1 2 . 1 1 1 1 Gunslinging 1 | . 1 . . . . . . . Exploded 1 | . . . 1 . 1 1 . . Melee . | . . . . . . . . . Uniques/NPCs Destroyed . | . . . . . . . . . Combat | -11 -10 -10 -8 -7 -7 -6 -6 -6 -------- Run | Yrd Mat Sub Mat Fac DSF Fac Low Low Hostile Shots Fired 751 | . 16 7 77 . 118 179 205 149 Missed 228 | . 3 2 18 . 40 63 64 38 Hits 523 | . 13 5 59 . 78 116 141 111 Melee 17 | . . . . . . 3 . 14 Projectile 506 | . 13 5 59 . 78 113 141 97 AOE 1 | . . . . . . 1 . . Critical Strikes 16 | . 1 . 1 . 2 2 3 7 Damage Taken 9256 | . 100 106 911 . 1730 1795 2428 2186 Core 1403 | . 17 20 111 . 403 191 157 504 Absorbed by Shields 32 | . . . . . . . 32 . Redirected to Shielding 48 | . . 5 22 . 21 . . . Core Remaining (%) 76 | 100 . 85 79 . 42 . . . Volleys Fired 247 | 3 4 6 51 . 38 70 52 23 Largest 2 | 2 2 2 2 . 2 2 2 2 Hottest 118 | 70 70 70 91 . 118 105 115 100 Shots Fired 413 | 6 8 12 90 . 76 109 88 24 Gun 267 | 6 8 12 73 . 74 45 38 11 Cannon 145 | . . . 17 . 2 64 50 12 Launcher . | . . . . . . . . . Special 1 | . . . . . . . . 1 Kinetic 234 | 3 4 6 48 . 36 45 72 20 Thermal 70 | 3 4 6 25 . . 24 6 2 Explosive . | . . . . . . . . . Electromagnetic 108 | . . . 17 . 40 40 10 1 Robot Hit Streak 13 | 5 2 6 13 . 11 12 6 7 Robot Miss Streak 5 | 1 2 2 3 . 4 5 4 2 Penetration Max 2 | . . . . . . 2 1 . Secondary Targets 3 | . 1 . 1 . 1 . . . Max Gunslinging Chain 1 | . 1 . 1 . 1 . . . Shots Hit Robots 262 | 5 4 8 53 . 62 63 50 17 Core Hits 105 | 3 3 5 25 . 18 23 21 7 Critical Kills 1 | . . . . . . . 1 . Critical Parts Destroyed 6 | . . . . . . 1 4 1 Critical Strikes 14 | . 1 . 2 . 1 1 7 2 Burn 5 | . 1 . 2 . . . 2 . Destroy 7 | . . . . . . 1 5 1 Corrupt 2 | . . . . . 1 . . 1 Melee Attacks 1 | . . . . . . . . 1 Impact . | . . . . . . . . . Slashing 1 | . . . . . . . . 1 Piercing . | . . . . . . . . . Sneak Attacks . | . . . . . . . . . Combat Hostiles . | . . . . . . . . . Follow-up Attacks . | . . . . . . . . . Damage Inflicted 6021 | 46 54 97 1016 . 1102 1838 1420 448 Guns 3017 | 46 54 97 512 . 913 567 663 165 Cannons 2539 | . . . 306 . 53 1140 757 283 Explosions 465 | . . . 198 . 136 131 . . Melee . | . . . . . . . . . Ramming . | . . . . . . . . . Kinetic 2801 | 21 17 23 296 . 407 567 1093 377 Thermal 1303 | 25 37 74 414 . 136 463 111 43 Explosive 131 | . . . . . . 131 . . Electromagnetic 1786 | . . . 306 . 559 677 216 28 Impact . | . . . . . . . . . Slashing . | . . . . . . . . . Piercing . | . . . . . . . . . Highest Corruption 18 | . . . 1 . . . 14 18 Average Corruption 7 | . . . 1 . . . 13 14 Corruption Purged . | . . . . . . . . . Corruption Blocked . | . . . . . . . . . Effects 41 | . . . 5 . . . 17 19 Message Errors 11 | . . . . . . . 6 5 Matter Fused 8 | . . . . . . . 3 5 Heat Flow Errors 6 | . . . 1 . . . 1 4 Energy Discharges 6 | . . . 1 . . . 3 2 Data Loss (minor) 6 | . . . 2 . . . 2 2 Data Loss (major) 2 | . . . . . . . 1 1 Misfires 1 | . . . 1 . . . . . Weapon Failures 1 | . . . . . . . 1 . Overload Shots . | . . . . . . . . . Overflow Damage 119 | . . . 103 . . 15 1 . Projectiles 23 | . . . 7 . . 15 1 . Explosions 96 | . . . 96 . . . . . Melee . | . . . . . . . . . Knockbacks 11 | . . . . . . . 6 5 Impact . | . . . . . . . . . Kinetic 9 | . . . . . . . 6 3 Secondary 2 | . . . . . . . . 2 Self-Inflicted Damage 223 | . . . 147 . . 76 . . Shots 3 | . . . 2 . . 1 . . Rammed . | . . . . . . . . . Targets Rammed . | . . . . . . . . . Kicked . | . . . . . . . . . Crushed . | . . . . . . . . . Highest Temperature 1062 | 50 80 . 244 . 1062 141 312 230 Average Temperature 110 | 26 40 . 62 . 270 42 133 107 Received Heat Transfer 1850 | . . . 135 . 222 354 935 204 Effects 21 | . . . . . 20 . 1 . Shutdowns 3 | . . . . . 3 . . . Energy Bleed 1 | . . . . . 1 . . . Interference 8 | . . . . . 8 . . . Matter Decay 2 | . . . . . 2 . . . Short Circuit 1 | . . . . . . . 1 . Damage (minor) 1 | . . . . . 1 . . . Damage (major) 3 | . . . . . 3 . . . Damage (core) 2 | . . . . . 2 . . . Siege Activations . | . . . . . . . . . Martial Activations . | . . . . . . . . . Shielding Activations . | . . . . . . . . . Robots Disrupted . | . . . . . . . . . Combat Hostiles . | . . . . . . . . . Robots Corrupted 3 | . . . . . 1 2 . . Combat Hostiles 3 | . . . . . 1 2 . . Parts Fried 12 | . . . . . 8 3 1 . Impact Corruptions . | . . . . . . . . . Robots Melted 1 | . . . . . . . 1 . Combat Hostiles 1 | . . . . . . . 1 . Parts Melted 2 | . . . 1 . . . 1 . Heat Transferred 2587 | 74 185 222 877 . 50 629 450 100 Parts Sabotaged . | . . . . . . . . . Parts Stolen . | . . . . . . . . . Parts Stripped . | . . . . . . . . . Power Chain Reactions 2 | . . . . . 2 . . . Alert | -11 -10 -10 -8 -7 -7 -6 -6 -6 ------- Run | Yrd Mat Sub Mat Fac DSF Fac Low Low Maximum Alert Level 2 | . . . . . 1 2 . . Low Security (%) 76 | 100 100 . 100 100 53 32 . . Level 1 20 | . . . . . 46 57 . . Level 2 2 | . . . . . . 9 . . Level 3 . | . . . . . . . . . Level 4 . | . . . . . . . . . Level 5 . | . . . . . . . . . High Security . | . . . . . . . . . Max Security . | . . . . . . . . . Sterilizations 1 | . . . . . 1 . . . Peak Influence 422 | 5 70 . 128 42 246 422 . . Initial 128 | . . . . 42 . 128 . . Average 99 | . 17 . 42 10 135 252 . . Influence Increases 1571 | 5 79 . 410 . 271 556 210 40 Destroy 0b10 Robot/C 960 | . 60 . 220 . 160 280 200 40 Destroy 0b10 Robot/NC 35 | 5 . . 20 . . 10 . . Destroy Leader 176 | . 10 . 64 . 30 62 10 . Successful Hack 20 | . 9 . 11 . . . . . Disable Machine 135 | . . . 45 . . 90 . . Destroy Structure 95 | . . . 35 . 6 54 . . Partial Spotted 15 | . . . 15 . . . . . Lose Combat Pursuer 135 | . . . . . 75 60 . . Influence Decreases 1559 | 5 79 . 316 94 25 390 622 28 Entered New Map 323 | . . . . 52 . 118 153 . Time Decay 1051 | 5 79 . 256 42 . 262 379 28 Lost Part 185 | . . . 60 . 25 10 90 . Squads Dispatched 10 | . . . 2 . 2 6 . . Investigation 3 | . . . 2 . . 1 . . Extermination 1 | . . . . . . 1 . . Reinforcement 3 | . . . . . 2 1 . . Assault . | . . . . . . . . . Garrison 3 | . . . . . . 3 . . Intercept . | . . . . . . . . . Searches Triggered . | . . . . . . . . . Construction Impeded . | . . . . . . . . . Haulers Reinforced . | . . . . . . . . . Active Scanning Responses . | . . . . . . . . . Cargo Convoy Interrupts . | . . . . . . . . . Stealth | -11 -10 -10 -8 -7 -7 -6 -6 -6 --------- Run | Yrd Mat Sub Mat Fac DSF Fac Low Low Distress Signals 1 | . . . 1 . . . . . Communications Jammed . | . . . . . . . . . Distress Signals . | . . . . . . . . . Times Spotted 74 | . 3 2 15 . 13 23 10 8 Peak Tracking Total 6 | . 3 2 4 . 3 6 5 4 Tactical Retreats 6 | . . . . . 3 3 . . Traps | -11 -10 -10 -8 -7 -7 -6 -6 -6 ------- Run | Yrd Mat Sub Mat Fac DSF Fac Low Low Traps Triggered . | . . . . . . . . . Indirectly . | . . . . . . . . . Trap Hack Attempts . | . . . . . . . . . Triggered . | . . . . . . . . . Disarmed . | . . . . . . . . . Reprogrammed . | . . . . . . . . . Reused . | . . . . . . . . . Traps Extracted . | . . . . . . . . . Installed . | . . . . . . . . . Triggered . | . . . . . . . . . Machines | -11 -10 -10 -8 -7 -7 -6 -6 -6 ---------- Run | Yrd Mat Sub Mat Fac DSF Fac Low Low Machines Disabled 10 | . . . 3 . . 6 . 1 Max in Single Turn 4 | . . . 2 . . 4 . 1 Machines Repaired . | . . . . . . . . . Machines Dismantled . | . . . . . . . . . Machines Sabotaged . | . . . . . . . . . Overloaded Fab Kills . | . . . . . . . . . Hacking | -11 -10 -10 -8 -7 -7 -6 -6 -6 --------- Run | Yrd Mat Sub Mat Fac DSF Fac Low Low Machines Accessed 13 | . 1 . 8 1 . 3 . . Terminals 9 | . 1 . 6 1 . 1 . . Fabricators 1 | . . . . . . 1 . . Repair Stations . | . . . . . . . . . Recycling Units 2 | . . . 2 . . . . . Scanalyzers . | . . . . . . . . . Garrison Access 1 | . . . . . . 1 . . Total Hacks 27 | . 4 . 18 1 . 4 . . Successful 9 | . 2 . 5 1 . 1 . . Failed 18 | . 2 . 13 . . 3 . . Catastrophic 6 | . . . 4 . . 2 . . Database Lockouts . | . . . . . . . . . Manual 7 | . 1 . 4 . . 1 . 1 Terminals 22 | . 4 . 16 1 . 1 . . Fabricators 1 | . . . . . . 1 . . Repair Stations . | . . . . . . . . . Recycling Units 2 | . . . 2 . . . . . Scanalyzers . | . . . . . . . . . Garrison Access 2 | . . . . . . 2 . . Terminal Hacks 5 | . 1 . 3 1 . . . . Robot Analysis 1 | . 1 . . . . . . . Open DSF 1 | . . . . 1 . . . . Branch Access Points 1 | . . . 1 . . . . . Emergency Access Points 2 | . . . 2 . . . . . Fabricator Hacks 1 | . . . . . . 1 . . Network Status 1 | . . . . . . 1 . . Repair Station Hacks . | . . . . . . . . . Recycling Unit Hacks 2 | . . . 2 . . . . . Report Inventory 2 | . . . 2 . . . . . Scanalyzer . | . . . . . . . . . Garrison Access Hacks . | . . . . . . . . . Unauthorized Hacks 1 | . 1 . . . . . . . Terminals 1 | . 1 . . . . . . . Botnet 1 | . 1 . . . . . . . Fabricators . | . . . . . . . . . Repair Stations . | . . . . . . . . . Recycling Units . | . . . . . . . . . Scanalyzers . | . . . . . . . . . Garrison Access . | . . . . . . . . . Data Cores Recovered 1 | . . . 1 . . . . . Used . | . . . . . . . . . Hacking Detections 11 | . 1 . 7 1 . 2 . . Full Trace Events 3 | . . . 2 . . 1 . . Feedback Events 1 | . . . 1 . . . . . Corruption 1 | . . . 1 . . . . . Feedback Blocked . | . . . . . . . . . Robot Schematics Acquired . | . . . . . . . . . Robots Built . | . . . . . . . . . Authchips . | . . . . . . . . . Time . | . . . . . . . . . Total Robot Build Rating . | . . . . . . . . . Part Schematics Acquired . | . . . . . . . . . Parts Built . | . . . . . . . . . Authchips . | . . . . . . . . . Time . | . . . . . . . . . Total Part Build Rating . | . . . . . . . . . Parts Repaired . | . . . . . . . . . Time . | . . . . . . . . . Parts Recycled . | . . . . . . . . . Recycled Matter . | . . . . . . . . . Retrieved Matter . | . . . . . . . . . Retrieved Components . | . . . . . . . . . Parts Scanalyzed . | . . . . . . . . . Part Schematics Acquired . | . . . . . . . . . Parts Damaged . | . . . . . . . . . Bothacking | -11 -10 -10 -8 -7 -7 -6 -6 -6 ------------ Run | Yrd Mat Sub Mat Fac DSF Fac Low Low Used RIF Installer . | . . . . . . . . . Robots Hacked . | . . . . . . . . . Non-combat . | . . . . . . . . . Combat . | . . . . . . . . . Robot Hacks Applied . | . . . . . . . . . Relay Couplers Released . | . . . . . . . . . Fabnet Peak Effective % . | . . . . . . . . . Robots Rewired 1 | . . . . . . . 1 . Allies Hacked . | . . . . . . . . . Hacks Repelled . | . . . . . . . . . Allies | -11 -10 -10 -8 -7 -7 -6 -6 -6 -------- Run | Yrd Mat Sub Mat Fac DSF Fac Low Low Total Allies 1 | . . . . . . . 1 . Largest Group 1 | . . . . . . . 1 1 Highest-Rated Group 30 | . . . . . . . 30 30 Highest-Rated Ally 30 | . . . . . . . 30 30 Initial Warlord ECA Mod 27 | . . . . . . 9 9 9 Total Orders . | . . . . . . . . . Ally Attacks 15 | . . . . . . . . 15 Total Damage 428 | . . . . . . . . 428 Kills 1 | . . . . . . . . 1 Allies Corrupted . | . . . . . . . . . Allies Melted . | . . . . . . . . . Intel | -11 -10 -10 -8 -7 -7 -6 -6 -6 ------- Run | Yrd Mat Sub Mat Fac DSF Fac Low Low Active Infowar (turns) 4097 | 46 271 . 820 209 329 568 1408 446 Optics 2939 | . . . . 188 329 568 1408 446 Sensors 1996 | . . . . 208 319 568 901 . Terrain 11 | . . . . . . . . 11 Seismic 1158 | 46 271 . 820 21 . . . . Robot Analysis Total 1 | . 1 . . . . . . . Derelict Logs Recovered 4 | . . 2 . . . . 2 . Drone Launches . | . . . . . . . . . Drone Recoveries . | . . . . . . . . . Exploration | -11 -10 -10 -8 -7 -7 -6 -6 -6 ------------- Run | Yrd Mat Sub Mat Fac DSF Fac Low Low Turns Passed 4558 | 119 271 354 841 209 334 576 1408 446 Spaces Moved 1886 | 64 89 256 392 123 99 212 522 129 Core 14 | 13 . . . . . . . 1 Treads 1356 | 51 30 . 316 123 99 212 522 3 Legs 125 | . . . . . . . . 125 Wheels 391 | . 59 256 76 . . . . . Hover . | . . . . . . . . . Flight . | . . . . . . . . . Fastest Speed 50 | 50 130 130 130 160 160 168 168 190 Average Speed 171 | 137 140 130 160 160 214 168 194 212 Slowest Speed 1400 | 160 160 130 240 160 245 168 330 1400 Overloaded Moves . | . . . . . . . . . Propulsion Burnouts . | . . . . . . . . . Robots Hopped . | . . . . . . . . . Potential Cave-ins . | . . . . . . . . . Cave-ins Triggered . | . . . . . . . . . Exploration Rate (%) 26 | 4 15 17 30 5 73 9 65 22 Regions Visited 8 Branch Regions 3 Pre-discovered Areas 2 | . . 1 . . . . 1 . Known Exits Taken 3 | . . . . 1 . 1 1 . Unknown Exits Taken 4 | 1 1 1 1 . . . . . Scrap Searched 2 | . . . . . . . 1 1 Spaces Dug . | . . . . . . . . . Terrain Destroyed 141 | . . . 44 . 6 69 20 2 Melee . | . . . . . . . . . Projectile 29 | . . . . . . 7 20 2 AOE 112 | . . . 44 . 6 62 . . Terrain Rammed . | . . . . . . . . . Walls Destroyed . | . . . . . . . . . Machines Disabled . | . . . . . . . . . Actions | -11 -10 -10 -8 -7 -7 -6 -6 -6 --------- Run | Yrd Mat Sub Mat Fac DSF Fac Low Low Total 2835 | 90 227 266 528 136 166 321 825 276 Wait 474 | 4 123 . 21 5 1 9 227 84 Move 1878 | 63 88 255 391 122 98 211 521 129 Hop . | . . . . . . . . . Pick Up 98 | 12 8 4 32 4 11 9 3 15 Fast Attach . | . . . . . . . . . Attach 58 | 7 . . 16 2 3 4 10 16 Detach 5 | . . . 1 . . . . 4 Swap 33 | . 3 1 3 1 6 11 4 4 Drop 33 | 1 1 . 13 2 9 7 . . Fire 247 | 3 4 6 51 . 38 70 52 23 Melee 1 | . . . . . . . . 1 Ram . | . . . . . . . . . Kick . | . . . . . . . . . Crush . | . . . . . . . . . Escape Stasis . | . . . . . . . . . Rewire 8 | . . . . . . . 8 . Trap . | . . . . . . . . . Miscellaneous . | . . . . . . . . . Route ------- -11/Scrapyard -10/Materials -10/Subcaves (discovered 2 exits: *Mat x2) -8/Materials -7/Factory (discovered 3 exits: *Fac / *Low / DSF) -7/DSF -6/Factory -6/Lower Caves -6/Lower Caves History --------- Turn | Location | Event 6 | -11/Scrapyard | Discovered new exit (range 16) 120 | -11/Scrapyard | Entered Materials 307 | -10/Materials | Build established: Mutant 369 | -10/Materials | Discovered new exit (range 4) 391 | -10/Materials | Entered Subcaves 401 | -10/Subcaves | Learned Materials terminal intel 590 | -10/Subcaves | Discovered new exit (range 9) 687 | -10/Subcaves | Discovered new exit (range 14) 745 | -10/Subcaves | Entered Materials 745 | -8/Materials | Evolved 4 slots: Propulsion x2, Utility x2 746 | -8/Materials | Loaded intel: 12 terminal locations 976 | -8/Materials | Lost 4 parts (2n2w) 1315 | -8/Materials | Discovered new exit (range 13) 1586 | -8/Materials | Entered Factory 1586 | -7/Factory | Evolved 2 slots: Utility x2 1685 | -7/Factory | Discovered new exit (range 11) 1699 | -7/Factory | Identified exit to Lower Caves 1765 | -7/Factory | Discovered new exit (range 11) 1781 | -7/Factory | Identified exit to Factory 1795 | -7/Factory | Identified exit to DSF 1795 | -7/Factory | Entered DSF 1827 | -7/DSF | Additional patrols routed to DSF 1924 | -7/DSF | Build established: Skirmisher 1951 | -7/DSF | Lost 3 parts (2n1w) 1993 | -7/DSF | Sterilization system engaged 2013 | -7/DSF | Ambient heat levels rising (+10) 2028 | -7/DSF | Ambient heat levels rising (+10) 2043 | -7/DSF | Ambient heat levels rising (+10) 2058 | -7/DSF | Ambient heat levels rising (+10) 2073 | -7/DSF | Ambient heat levels rising (+10) 2085 | -7/DSF | Discovered exit to Factory (range 18) 2088 | -7/DSF | Ambient heat levels rising (+10) 2103 | -7/DSF | Ambient heat levels rising (+10) 2118 | -7/DSF | Ambient heat levels rising (+10) 2121 | -7/DSF | Core integrity fell below 50% 2129 | -7/DSF | Entered Factory 2129 | -6/Factory | Evolved 2 slots: Propulsion x2 2288 | -6/Factory | Garrison activated, responded to threat 2682 | -6/Factory | Discovered new exit (range 5) 2701 | -6/Factory | Identified exit to Lower Caves 2705 | -6/Factory | Entered Lower Caves 2712 | -6/Lower Caves | Met a Warlord Commander 2714 | -6/Lower Caves | Learned location of Warlord (-5) 2715 | -6/Lower Caves | Warlord Commander delivered Encrypted Comm Array 2719 | -6/Lower Caves | Found Encrypted Comm Array 2889 | -6/Lower Caves | Identified exit to Lower Caves 2914 | -6/Lower Caves | Learned Factory stockpile data 3540 | -6/Lower Caves | Attracted the attention of an 0b10 checkpoint 3661 | -6/Lower Caves | Lost 6 parts (2p3n1u) 3685 | -6/Lower Caves | System corruption reached 10% 3707 | -6/Lower Caves | Lost 3 parts (1n2u) 3762 | -6/Lower Caves | Attracted the attention of an 0b10 outpost 3851 | -6/Lower Caves | Lost 6 parts (3n2u1w) 3982 | -6/Lower Caves | Build established: Scavenger-Mutant 4113 | -6/Lower Caves | Entered another Lower Caves area 4113 | -6/Lower Caves | Accompanied by 1 ally 4174 | -6/Lower Caves | Core integrity fell below 50% 4204 | -6/Lower Caves | Lost 6 parts (1p2n1u2w) 4328 | -6/Lower Caves | Acquired the password to a Derelict Tinkerer's latest research 4341 | -6/Lower Caves | Found Prototype Special Weapon 4451 | -6/Lower Caves | Attracted the attention of an 0b10 checkpoint 4478 | -6/Lower Caves | Caught by Unaware searching for contraband prototypes 4493 | -6/Lower Caves | Identified Molecular Deconstructor 4495 | -6/Lower Caves | Caught by Unaware searching for contraband prototypes 4540 | -6/Lower Caves | Core integrity fell below 20% 4559 | -6/Lower Caves | Destroyed by X-72 Disruptor with Arc Projector Last Messages --------------- 04536_ Critical hit (Destroy). 04536_ Minigun destroyed. 04539_ Penetrated by Slug. 04540_ Slug penetrates Wall. 04546_ Entropy package works its way towards H-66 Slayer core. 04546_ Penetrated by Slug. 04546_ Weapon Cycler destroyed. 04546_ Penetrated by Slug. 04548_ H-66 Slayer core destabilizing. 04549_ Penetrated by Slug. 04550_ H-66 Slayer core destabilizing. 04552_ H-66 Slayer core entropy levels peaking. 04552_ H-66 Slayer destroyed. [Achievement: Deconstruction] 04555_ Penetrated by Slug. 04556_ System corrupted: Matter fused (-6). 04558_ Penetrated by Slug. 04559_ Flexi-carbon Leg fries itself beyond repair. Map ----- +----------------------------------------------------+ | ?????????????????????????## ### ### | | ????????????????????#????# ### | | ???????????????????? ????# #?# | | ????????????????????# ????# #?## | | ????????????????????# ???# ## #??## | | ????????????????????# ???# ### ##???## | | ????????????????????# ???# #?## # #?????# | | ????????????????????# #??# #??#%##### #?????# | | ????????????????????# #?# #??# #??? ?????# | | ?????????????????????# ## #### #??? ????# # | | ?????????????????????# #??? ????# # | | ?????????????????????# #??? ??? # | | ?????????????????????## #?? % %?## # | | ??????????????????????## x % #??## %??# # | | ???????????????????????## # #???## ##?# | | ????????????????????????# #????? ??? # | | ????????????????????????# #????? ???# | | ????????????????????????# ########?????% ???# # | | ????????????????????????#%x#???????????? % #??# | | ????????????????????????#! #???????????? %#??# # | | ????????????????????????# #????????????% ??? #? | | ????????????????????????# #?????????????????? ?? | | ????????????????????????# #???????????????????#?? | | ????????????????????????# #?????????????????????? | | ????????????????????????# #?????????????????????? | | ????????????????????????#@ #?????????????????????? | | ????????????????????????# #?????????????????????? | | ????????????????????????# #?????????????????????? | | ???????????????????????? #?????????????????????? | | ???????????????????????? #?????????????????????? | | ???????????????????????? ##?????????????????????? | | ???????????????????????? #??????????????????????? | | ???????????????????????## ??????????????????????? | | ????????????????????????# ??????????????????????? | | ???????????????????????? ??????????????????????? | | ???????????????????????? ??????????????????????? | | ????????????????????????# ??????????????????????? | | ????????????????????????? ??????????????????????? | | ????????????????????????? ??????????????????????? | | ????????????????????????? ??????????????????????? | | ?????????????????????????# ??????????????????????? | | ?????????????????????????? ??????????????????????? | | ?????????????????????????? ??????????????????????? | | ?????????????????????????? ??????????????????????? | | ??????????????????????????#??????????????????????? | | ?????????????????????????????????????????????????? | | ?????????????????????????????????????????????????? | | ?????????????????????????????????????????????????? | | ?????????????????????????????????????????????????? | | ?????????????????????????????????????????????????? | +----------------------------------------------------+ Best States ------------- Heat Dissipation 47 Energy Generation 21 Energy Capacity 290 Matter Stores 300 Matter Capacity 300 Sight Range 20 Robot Scan Range 15 Terrain Scan Range 16 Terrain Scan Density 10 Armor Coverage 450 Core Shielding 20 Weapon Cycling 15 Evasion (%) 50 Melee Accuracy 6 Recoil Reduction 6 Defensive Hacking 10 Item Schematics ----------------- None Robot Schematics ------------------ None Fabricated ------------ Nothing Repaired ---------- Nothing Alien Tech Used ----------------- None Achievements -------------- Deconstruction Challenges ------------ None Game ------ Seed DimensionalOvertunedShifter Manual? 0 Play Time 00:36:09 Cumulative 181.9 hours Start 2025.08.22 @ 01:31:55 End 2025.08.22 @ 02:08:43 Sessions 1 Manual Loads 0 Difficulty Rogue Special Mode None Game No. 287 Rogue 287 Adventurer 0 Explorer 0 Win Type - Total 3 Types 2/0/1/0/0/0/0/0/0/0 Lore% 79 Gallery% 74 Achievement% 55 Wizard Run 0 Options --------- Layout 1 ASCII 0 Keyboard 0 Movement Mouse Keybinds 0 Fullscreen 1 Font 24/Smallcaps Map View 50x40 Zoom Use 0% Tactical HUD 1 Map Filters NONE Filters NONE Steam 1 RUN: 001b2dbc-8eb1-4d59-8f5c-3cdcbbb35ef4